fUST/lending_fUST_20240808
["ID","MTS","AMOUNT","RATE_DAILY","PERIOD"]
[334429592,1723089045032,-198.766795,0.00027397,7]
[334429593,1723089045042,-1240.21,0.00027397,7]
[334429594,1723089045051,-1137.62,0.00027397,7]
[334429595,1723089045061,-153.399951,0.00027397,7]
[334429596,1723089045070,-2189.51,0.00027397,7]
[334429597,1723089045080,-198.766795,0.00027397,7]
[334429598,1723089045089,-500.0,0.00027397,7]
[334429599,1723089045098,-707.61,0.00027397,7]
[334429600,1723089045108,-648.77,0.00027397,7]
[334429601,1723089045118,-501.77742682,0.00027397,7]
[334429602,1723089045127,-500.0,0.00027397,7]
[334429603,1723089045137,-500.0,0.00027397,7]
[334429604,1723089045146,-500.0,0.00027397,7]
[334429605,1723089045156,-3917.99,0.00027397,7]
[334429606,1723089045166,-501.23987814,0.00027397,7]
[334429607,1723089045175,-1081.26,0.00027397,7]
[334429608,1723089045184,-1015.91,0.00027397,7]
[334429609,1723089045194,-531.76,0.00027397,7]
[334429610,1723089045203,-531.76,0.00027397,7]
[334429611,1723089045213,-531.76,0.00027397,7]
[334429612,1723089045223,-531.76,0.00027397,7]
[334429613,1723089045232,-531.76,0.00027397,7]
[334429614,1723089045241,-531.76,0.00027397,7]
[334429615,1723089045251,-531.76,0.00027397,7]
[334429616,1723089045260,-531.76,0.00027397,7]
[334429617,1723089045269,-531.76,0.00027397,7]
[334429618,1723089045280,-500.0,0.00027397,7]
[334429619,1723089045289,-531.76,0.00027397,7]
[334429620,1723089045298,-531.76,0.00027397,7]
[334429621,1723089045308,-531.76,0.00027397,7]
[334429622,1723089045317,-531.76,0.00027397,7]
[334429623,1723089045327,-814.74,0.00027397,7]
[334429624,1723089045338,-500.0,0.00027397,7]
[334429625,1723089045347,-500.0,0.00027397,7]
[334429626,1723089045357,-151.0,0.00027397,7]
[334429627,1723089045367,-500.0,0.00027397,7]
[334429628,1723089045377,-500.0,0.00027397,7]
[334429629,1723089045388,-500.0,0.00027397,7]
[334429630,1723089045398,-625.75641295,0.00027397,7]
[334429631,1723089045408,-500.0,0.00027397,7]
[334429632,1723089045417,-755.26,0.00027397,7]
[334429633,1723089045426,-500.0,0.00027397,7]
[334429634,1723089045435,-2441.37,0.00027397,7]
[334429635,1723089045445,-8070.03,0.00027397,7]
[334429636,1723089045454,-500.0,0.00027397,7]
[334429637,1723089045464,-747.25,0.00027397,7]
[334429638,1723089045473,-500.0,0.00027397,7]
[334429639,1723089045483,-500.0,0.00027397,7]
[334429640,1723089045492,-500.0,0.00027397,7]
[334429641,1723089045501,-500.61871886,0.00027397,7]
[334429642,1723089045511,-1232.1,0.00027397,7]
[334429643,1723089045520,-500.0,0.00027397,7]
[334429644,1723089045530,-500.0,0.00027397,7]
[334429646,1723089045540,-500.0,0.00027397,7]
[334429647,1723089045549,-500.0,0.00027397,7]
[334429648,1723089045558,-151.0,0.00027397,7]
[334429649,1723089045567,-501.60012799,0.00027397,7]
[334429650,1723089045576,-1482.8,0.00027397,7]
[334429651,1723089045586,-560.14,0.00027397,7]
[334429652,1723089045596,-692.88,0.00027397,7]
[334429653,1723089045605,-500.0,0.00027397,7]
[334429654,1723089045615,-1940.47,0.00027397,7]
[334429655,1723089045625,-500.0,0.00027397,7]
[334429656,1723089045636,-151.0,0.00027397,7]
[334429657,1723089045646,-5515.02,0.00027397,7]
[334429658,1723089045659,-500.0,0.00027397,7]
[334429659,1723089045668,-151.0,0.00027397,7]
[334429660,1723089045681,-86.48055624,0.00027397,7]
[334429661,1723089046185,-413.51944376,0.00027397,7]
[334429662,1723089046195,-500.0,0.00027397,7]
[334429663,1723089046206,-151.0,0.00027397,7]
[334429664,1723089046216,-500.0,0.00027397,7]
[334429665,1723089046228,-500.0,0.00027397,7]
[334429666,1723089046239,-503.8519229,0.00027397,7]
[334429667,1723089046249,-5077.42,0.00027397,7]
[334429668,1723089046259,-151.0,0.00027397,7]
[334429669,1723089046269,-500.0,0.00027397,7]
[334429670,1723089046282,-500.0,0.00027397,7]
[334429671,1723089046299,-509.25680947,0.00027397,7]
[334429672,1723089046312,-151.0,0.00027397,7]
[334429673,1723089046322,-500.0,0.00027397,7]
[334429674,1723089046332,-500.0,0.00027397,7]
[334429675,1723089046342,-2395.61,0.00027397,7]
[334429676,1723089046352,-500.0,0.00027397,7]
[334429677,1723089046363,-523.84,0.00027397,7]
[334429678,1723089046373,-154.237725,0.00027397,7]
[334429679,1723089046383,-500.0,0.00027397,7]
[334429680,1723089046393,-1559.66,0.00027397,7]
[334429681,1723089046402,-751.1,0.00027397,7]
[334429682,1723089046412,-1256.43,0.00027397,7]
[334429683,1723089046422,-500.65393547,0.00027397,7]
[334429684,1723089046432,-500.0,0.00027397,7]
[334429685,1723089046443,-510.11473304,0.00027397,7]
[334429686,1723089046452,-500.0,0.00027397,7]
[334429687,1723089046462,-1681.27,0.00027397,7]
[334429688,1723089046473,-500.0,0.00027397,7]
[334429689,1723089046483,-500.0,0.00027397,7]
[334429690,1723089046493,-500.0,0.00027397,7]
[334429691,1723089046503,-1056.81,0.00027397,7]
[334429692,1723089046513,-500.0,0.00027397,7]
[334429693,1723089046525,-502.91166621,0.00027397,7]
[334429694,1723089046535,-5698.5,0.00027397,7]
[334429695,1723089046545,-500.0,0.00027397,7]
[334429696,1723089046554,-672.534281,0.00027397,7]
[334429697,1723089046565,-500.0,0.00027397,7]
[334429699,1723089046574,-500.0,0.00027397,7]
[334429701,1723089046584,-500.0,0.00027397,7]
[334429703,1723089046594,-1436.3,0.00027397,7]
[334429705,1723089046604,-500.0,0.00027397,7]
[334429707,1723089046614,-500.0,0.00027397,7]
[334429709,1723089046625,-672.534281,0.00027397,7]
[334429711,1723089046634,-500.46747427,0.00027397,7]
[334429714,1723089046646,-1419.15,0.00027397,7]
[334429717,1723089046660,-500.0,0.00027397,7]
[334429720,1723089046670,-8784.73,0.00027397,7]
[334429723,1723089046681,-371.19046015,0.00027397,7]
[334429727,1723089046691,-500.0,0.00027397,7]
[334429730,1723089046704,-502.81112584,0.00027397,7]
[334429732,1723089046715,-500.0,0.00027397,7]
[334429734,1723089046727,-500.0,0.00027397,7]
[334429736,1723089046738,-502.73880892,0.00027397,7]
[334429738,1723089046748,-927.73,0.00027397,7]
[334429740,1723089046759,-500.0,0.00027397,7]
[334429743,1723089046769,-3142.02,0.00027397,7]
[334429744,1723089046780,-1224.23,0.00027397,7]
[334429746,1723089046790,-3435.52,0.00027397,7]
[334429749,1723089046801,-154.191438,0.00027397,7]
[334429751,1723089046811,-606.64,0.00027397,7]
[334429753,1723089046822,-978.43,0.00027397,7]
[334429755,1723089046834,-480.83462948,0.00027397,7]
[334429757,1723089046845,-500.0,0.00027397,7]
[334429760,1723089046856,-151.0,0.00027397,7]
[334429762,1723089046866,-501.01408467,0.00027397,7]
[334429764,1723089046876,-500.0,0.00027397,7]
[334429766,1723089046887,-500.0,0.00027397,7]
[334429768,1723089046898,-2044.09,0.00027397,7]
[334429770,1723089046910,-503.14273655,0.00027397,7]
[334429772,1723089046920,-500.0,0.00027397,7]
[334429774,1723089046930,-151.0,0.00027397,7]
[334429776,1723089046940,-501.35152801,0.00027397,7]
[334429778,1723089046951,-500.0,0.00027397,7]
[334429781,1723089046962,-501.13023387,0.00027397,7]
[334429783,1723089046973,-500.0,0.00027397,7]
[334429785,1723089046984,-500.0,0.00027397,7]
[334429787,1723089046995,-500.0,0.00027397,7]
[334429789,1723089047005,-500.0,0.00027397,7]
[334429791,1723089047015,-793.0,0.00027397,7]
[334429793,1723089047026,-500.0,0.00027397,7]
[334429795,1723089047036,-500.0,0.00027397,7]
[334429797,1723089047045,-704.72,0.00027397,7]
[334429799,1723089047056,-1140.13,0.00027397,7]
[334429801,1723089047065,-151.0,0.00027397,7]
[334429803,1723089047075,-500.6452803,0.00027397,7]
[334429805,1723089047087,-449.92909267,0.00027397,7]
[334429807,1723089047098,-500.0,0.00027397,7]
[334429809,1723089047109,-2523.12,0.00027397,7]
[334429810,1723089047119,-502.48084563,0.00027397,7]
[334429811,1723089047131,-500.0,0.00027397,7]
[334429812,1723089047143,-502.81125657,0.00027397,7]
[334429813,1723089047153,-535.09,0.00027397,7]
[334429814,1723089047163,-150.112233,0.000274,10]
[334429815,1723089047176,-150.112235,0.000274,7]
[334429816,1723089047186,-1493.7737391,0.000274,2]
[334429817,1723089047197,-5091.17345174,0.0002749,3]
[334429818,1723089047207,-500.0,0.00027499,7]
[334429820,1723089047216,-500.0,0.00027499,7]
[334429821,1723089047227,-234.23023069,0.00027499,7]
[334429823,1723089047237,-500.0,0.00027499,7]
[334429825,1723089047247,-500.0,0.00027499,7]
[334429827,1723089047259,-500.0,0.00027499,7]
[334429829,1723089047269,-500.0,0.00027499,7]
[334429830,1723089047279,-531.76,0.00027499,7]
[334429831,1723089047290,-531.76,0.00027499,7]
[334429832,1723089047299,-10000.0,0.000275,12]
[334429833,1723089047309,-43769.1899798,0.000275,2]
[334429834,1723089047320,-150.112233,0.000275,8]
[334429835,1723089047330,-150.112233,0.000275,8]
[334429836,1723089047341,-151.0,0.00027561,4]
[334429837,1723089047351,-151.0,0.00027561,4]
[334429838,1723089047362,-620.00025402,0.00027568,2]
[334429839,1723089047372,-336.34985941,0.000276,30]
[334429840,1723089047382,-150.112233,0.000276,8]
[334429841,1723089047392,-500.0,0.0002766,7]
[334429842,1723089047402,-531.76,0.0002766,7]
[334429843,1723089047412,-151.0,0.0002766,7]
[334429844,1723089047422,-151.0,0.0002766,7]
[334429845,1723089047436,-151.0,0.0002766,7]
[334429846,1723089047447,-5091.17345174,0.0002766,3]
[334429847,1723089047458,-35638.2141622,0.00027661,3]
[334429848,1723089047469,-151.0,0.00027661,7]
[334429849,1723089047479,-151.0,0.00027661,7]
[334429850,1723089047490,-151.0,0.00027661,7]
[334429851,1723089047500,-153.975627,0.00027661,7]
[334429852,1723089047511,-151.0,0.00027661,7]
[334429853,1723089047521,-151.0,0.00027661,7]
[334429854,1723089047533,-151.0,0.00027661,7]
[334429855,1723089047543,-151.0,0.00027661,7]
[334429856,1723089047555,-151.0,0.00027661,7]
[334429857,1723089047565,-151.0,0.00027661,7]
[334429858,1723089047575,-151.0,0.00027661,7]
[334429859,1723089047585,-151.0,0.00027661,7]
[334429860,1723089047595,-198.766795,0.00027661,7]
[334429861,1723089047605,-198.766795,0.00027661,7]
[334429862,1723089047615,-151.0,0.00027661,7]
[334429863,1723089047625,-151.0,0.00027661,7]
[334429864,1723089047635,-151.0,0.00027661,7]
[334429865,1723089047646,-151.0,0.00027661,7]
[334429866,1723089047659,-151.0,0.00027661,7]
[334429867,1723089047669,-156.885972,0.00027661,7]
[334429868,1723089047681,-151.0,0.00027661,7]
[334429869,1723089047692,-672.534281,0.00027661,7]
[334429870,1723089047702,-672.534281,0.00027661,7]
[334429871,1723089047712,-500.0,0.00027668,7]
[334429872,1723089047722,-500.0,0.0002767,7]
[334429873,1723089047734,-500.0,0.0002767,7]
[334429874,1723089047745,-500.0,0.0002767,7]
[334429875,1723089047756,-500.0,0.0002767,7]
[334429876,1723089047767,-500.0,0.0002767,7]
[334429877,1723089047777,-531.49465411,0.0002767,7]
[334429878,1723089047787,-151.0,0.0002767,7]
[334429879,1723089047797,-157.870824,0.0002767,7]
[334429880,1723089047807,-500.0,0.0002767,7]
[334429881,1723089047818,-500.0,0.0002767,7]
[334429882,1723089047827,-500.0,0.0002767,7]
[334429883,1723089047838,-500.0,0.0002767,7]
[334429884,1723089047848,-500.0,0.0002767,7]
[334429885,1723089047858,-500.0,0.0002767,7]
[334429886,1723089047868,-500.0,0.0002767,7]
[334429887,1723089047878,-500.0,0.0002767,7]
[334429888,1723089047888,-500.0,0.0002767,7]
[334429889,1723089047898,-500.0,0.0002767,7]
[334429890,1723089047908,-500.0,0.0002767,7]
[334429891,1723089047918,-500.0,0.0002767,7]
[334429892,1723089047928,-500.0,0.0002767,7]
[334429893,1723089047938,-500.0,0.0002767,7]
[334429894,1723089047948,-298.39180136,0.0002767,7]
[334429895,1723089047959,-531.76,0.0002767,7]
[334429896,1723089047971,-531.76,0.0002767,7]
[334429897,1723089047982,-531.76,0.0002767,7]
[334429898,1723089047993,-531.76,0.0002767,7]
[334429899,1723089048002,-531.76,0.0002767,7]
[334429900,1723089048014,-531.76,0.0002767,7]
[334429901,1723089048025,-531.76,0.0002767,7]
[334429902,1723089048038,-531.90055204,0.0002767,7]
[334429903,1723089048049,-500.0,0.00027671,7]
[334429904,1723089048059,-859.85,0.00027671,7]
[334429905,1723089048069,-500.0,0.00027671,7]
[334429906,1723089048080,-514.69334093,0.00027671,7]
[334429907,1723089048090,-500.0,0.00027671,7]
[334429908,1723089048100,-500.0,0.00027671,7]
[334429909,1723089048110,-500.0,0.00027671,7]
[334429910,1723089048121,-500.0,0.00027671,7]
[334429911,1723089048131,-500.0,0.00027671,7]
[334429912,1723089048142,-500.0,0.00027671,7]
[334429913,1723089048153,-500.0,0.00027671,7]
[334429914,1723089048163,-500.0,0.00027671,7]
[334429915,1723089048174,-500.0,0.00027671,7]
[334429916,1723089048184,-504.65048928,0.00027671,7]
[334429917,1723089048194,-500.0,0.00027671,7]
[334429918,1723089048204,-500.0,0.00027671,7]
[334429919,1723089048215,-461.16518818,0.00027671,7]
[334429920,1723089048225,-1271.14,0.00027671,7]
[334429921,1723089048235,-500.0,0.00027671,7]
[334429922,1723089048246,-500.0,0.00027671,7]
[334429923,1723089048256,-500.0,0.00027671,7]
[334429924,1723089048267,-529.21,0.00027671,7]
[334429925,1723089048279,-500.0,0.00027671,7]
[334429926,1723089048289,-500.0,0.00027671,7]
[334429927,1723089048299,-540.98357955,0.00027671,7]
[334429928,1723089048311,-700.87,0.00027671,7]
[334429929,1723089048322,-500.0,0.00027671,7]
[334429930,1723089048540,-500.0,0.00027671,7]
[334429931,1723089048550,-500.0,0.00027671,7]
[334429932,1723089048559,-500.0,0.00027671,7]
[334429933,1723089048571,-500.0,0.00027671,7]
[334429934,1723089048581,-500.0,0.00027671,7]
[334429935,1723089048590,-1536.71,0.00027671,7]
[334429936,1723089048600,-500.0,0.00027671,7]
[334429937,1723089048610,-500.0,0.00027671,7]
[334429938,1723089048620,-500.0,0.00027671,7]
[334429939,1723089048629,-503.96,0.00027671,7]
[334429940,1723089048639,-616.35998413,0.00027671,7]
[334429941,1723089048650,-500.0,0.00027671,7]
[334429942,1723089048661,-500.0,0.00027671,7]
[334429943,1723089048671,-505.43552066,0.00027671,7]
[334429944,1723089048682,-1033.23,0.00027671,7]
[334429945,1723089048692,-1235.28,0.00027671,7]
[334429946,1723089048712,-500.0,0.00027671,7]
[334429947,1723089048726,-550.37,0.00027671,7]
[334429948,1723089048739,-500.0,0.00027671,7]
[334429949,1723089048751,-501.45938661,0.00027671,7]
[334429950,1723089048762,-622.14,0.00027671,7]
[334429951,1723089048773,-1103.32,0.00027671,7]
[334429952,1723089048785,-548.19204473,0.00027671,2]
[334429953,1723089048796,-500.0,0.00027671,7]
[334429954,1723089048807,-503.60581434,0.00027671,7]
[334429955,1723089048818,-1180.33,0.00027671,7]
[334429956,1723089048828,-566.8322756,0.00027671,7]
[334429957,1723089048839,-500.0,0.00027671,7]
[334429958,1723089048850,-500.0,0.00027671,7]
[334429959,1723089048861,-500.0,0.00027671,7]
[334429960,1723089048871,-1272.21,0.00027671,7]
[334429961,1723089048882,-500.0,0.00027671,7]
[334429962,1723089048895,-500.0,0.00027671,7]
[334429963,1723089048906,-500.0,0.00027671,7]
[334429964,1723089048917,-524.95,0.00027671,7]
[334429965,1723089048927,-1112.92,0.00027671,7]
[334429966,1723089048938,-500.0,0.00027671,7]
[334429967,1723089048949,-500.0,0.00027671,7]
[334429968,1723089048959,-500.0,0.00027671,7]
[334429969,1723089048969,-500.0,0.00027671,7]
[334429970,1723089048981,-500.0,0.00027671,7]
[334429971,1723089048991,-565.76,0.00027671,7]
[334429972,1723089049002,-1863.54,0.00027671,7]
[334429973,1723089049012,-500.0,0.00027671,7]
[334429974,1723089049022,-500.0,0.00027671,7]
[334429975,1723089049032,-539.45,0.00027671,7]
[334429976,1723089049043,-500.0,0.00027671,7]
[334429977,1723089049055,-573.43,0.00027671,7]
[334429978,1723089049064,-378.1654324,0.00027671,7]
[334429979,1723089049075,-500.0,0.00027671,7]
[334429980,1723089049085,-500.0,0.00027671,7]
[334429981,1723089049096,-500.0,0.00027671,7]
[334429982,1723089049106,-500.0,0.00027671,7]
[334429983,1723089049115,-603.67465389,0.00027671,7]
[334429984,1723089049127,-500.0,0.00027671,7]
[334429985,1723089049137,-500.0,0.00027671,7]
[334429986,1723089049147,-500.0,0.00027671,7]
[334429987,1723089049157,-500.0,0.00027671,7]
[334429988,1723089049168,-500.0,0.00027671,7]
[334429989,1723089049178,-500.0,0.00027671,7]
[334429990,1723089049189,-500.0,0.00027671,7]
[334429991,1723089049199,-854.88,0.00027671,7]
[334429992,1723089049210,-1574.46,0.00027671,7]
[334429993,1723089049221,-448.38537132,0.00027671,7]
[334429994,1723089049231,-500.0,0.00027671,7]
[334429995,1723089049241,-503.67030436,0.00027671,7]
[334429996,1723089049251,-500.0,0.00027671,7]
[334429997,1723089049261,-500.0,0.00027671,7]
[334429998,1723089049271,-500.0,0.00027671,7]
[334429999,1723089049281,-500.0,0.00027671,7]
[334430000,1723089049290,-500.0,0.00027671,2]
[334430001,1723089049300,-1153.44,0.00027671,7]
[334430002,1723089049311,-500.0,0.00027671,7]
[334430003,1723089049321,-1446.16,0.00027671,7]
[334430004,1723089049331,-500.0,0.00027671,7]
[334430005,1723089049341,-500.0,0.00027671,7]
[334430006,1723089049352,-508.35596911,0.00027671,7]
[334430007,1723089049363,-1785.5,0.00027671,7]
[334430008,1723089049373,-500.0,0.00027671,7]
[334430009,1723089049383,-500.0,0.00027671,7]
[334430010,1723089049393,-350.61737833,0.00027671,7]
[334430011,1723089049404,-500.0,0.00027671,7]
[334430012,1723089049414,-505.25959199,0.00027671,7]
[334430013,1723089049424,-617.07,0.00027671,7]
[334430014,1723089049434,-501.39781597,0.00027671,7]
[334430015,1723089049444,-710.38,0.00027671,7]
[334430016,1723089049455,-500.0,0.00027671,7]
[334430017,1723089049466,-500.0,0.00027671,7]
[334430018,1723089049477,-500.0,0.00027671,7]
[334430019,1723089049487,-643.55,0.00027671,7]
[334430020,1723089049497,-500.0,0.00027671,7]
[334430021,1723089049506,-500.0,0.00027671,7]
[334430022,1723089049516,-772.42,0.00027671,7]
[334430023,1723089049526,-504.01331485,0.00027671,7]
[334430024,1723089049537,-500.0,0.00027671,7]
[334430025,1723089049547,-738.47,0.00027671,7]
[334430026,1723089049557,-500.0,0.00027671,7]
[334430027,1723089049567,-1401.14,0.00027671,7]
[334430028,1723089049577,-1742.27,0.00027671,7]
[334430029,1723089049587,-720.29,0.00027671,7]
[334430030,1723089049596,-500.0,0.00027671,7]
[334430031,1723089049607,-500.0,0.00027671,7]
[334430032,1723089049617,-861.23,0.00027671,7]
[334430033,1723089049627,-500.0,0.00027671,7]
[334430034,1723089049637,-500.0,0.00027671,7]
[334430035,1723089049648,-846.41,0.00027671,7]
[334430036,1723089049661,-500.0,0.00027671,7]
[334430037,1723089049670,-908.56,0.00027671,7]
[334430038,1723089049682,-505.11,0.00027671,7]
[334430039,1723089049693,-500.0,0.00027671,7]
[334430040,1723089049703,-500.0,0.00027671,7]
[334430041,1723089049712,-1580.04,0.00027671,7]
[334430042,1723089049723,-500.0,0.00027671,7]
[334430043,1723089049734,-1022.77,0.00027671,7]
[334430044,1723089049745,-500.0,0.00027671,7]
[334430045,1723089049757,-500.0,0.00027671,7]
[334430046,1723089049769,-563.94119042,0.00027671,7]
[334430047,1723089049779,-151.0,0.00027671,7]
[334430048,1723089049789,-500.0,0.00027671,7]
[334430049,1723089049798,-151.0,0.00027671,7]
[334430050,1723089049808,-500.0,0.00027671,7]
[334430051,1723089049817,-219.47735456,0.00027671,7]
[334430052,1723089049826,-500.0,0.00027671,7]
[334430053,1723089049836,-500.0,0.00027671,7]
[334430054,1723089049845,-500.0,0.00027671,7]
[334430055,1723089049855,-533.08,0.00027671,7]
[334430056,1723089049864,-1025.9,0.00027671,7]
[334430057,1723089049874,-500.0,0.00027671,7]
[334430058,1723089049884,-500.0,0.00027671,7]
[334430059,1723089049893,-1519.91,0.00027671,7]
[334430060,1723089049903,-500.0,0.00027671,7]
[334430061,1723089049913,-500.0,0.00027671,7]
[334430062,1723089049922,-500.0,0.00027671,7]
[334430063,1723089049932,-378.30432144,0.00027671,7]
[334430064,1723089049941,-1080.67,0.00027671,7]
[334430065,1723089049951,-1109.53,0.00027671,7]
[334430066,1723089049961,-527.79,0.00027671,7]
[334430067,1723089049970,-348.45745731,0.00027671,7]
[334430068,1723089049981,-549.43,0.00027671,7]
[334430069,1723089049991,-300.77040873,0.00027671,7]
[334430070,1723089050002,-500.0,0.00027671,7]
[334430071,1723089050012,-500.0,0.00027671,7]
[334430072,1723089050022,-500.0,0.00027671,7]
[334430073,1723089050033,-1411.03,0.00027671,7]
[334430074,1723089050043,-500.0,0.00027671,7]
[334430075,1723089050052,-502.07903161,0.00027671,7]
[334430076,1723089050062,-642.8,0.00027671,7]
[334430077,1723089050071,-500.0,0.00027671,7]
[334430078,1723089050080,-1451.55,0.00027671,7]
[334430079,1723089050090,-500.0,0.00027671,7]
[334430080,1723089050099,-477.01324356,0.00027671,7]
[334430081,1723089050109,-169.1379668,0.00027671,7]
[334430082,1723089050119,-500.0,0.00027671,7]
[334430083,1723089050128,-500.0,0.00027671,7]
[334430084,1723089050138,-500.0,0.00027671,7]
[334430085,1723089050148,-500.0,0.00027671,7]
[334430086,1723089050157,-255.43036665,0.00027671,7]
[334430087,1723089050167,-505.33441862,0.00027671,7]
[334430088,1723089050176,-799.33,0.00027671,7]
[334430089,1723089050185,-500.0,0.00027671,7]
[334430090,1723089050195,-858.08,0.00027671,7]
[334430091,1723089050204,-558.37,0.00027671,7]
[334430092,1723089050214,-151.0,0.00027671,7]
[334430093,1723089050224,-151.0,0.00027671,7]
[334430094,1723089050234,-500.0,0.00027671,7]
[334430095,1723089050245,-242.772418,0.00027671,7]
[334430096,1723089050256,-500.0,0.00027671,7]
[334430097,1723089050266,-501.68,0.00027671,7]
[334430098,1723089050276,-500.0,0.00027671,7]
[334430099,1723089050295,-151.0,0.00027671,7]
[334430100,1723089050306,-151.0,0.00027671,7]
[334430101,1723089050317,-500.0,0.00027671,7]
[334430102,1723089050328,-500.0,0.00027671,7]
[334430103,1723089050341,-500.0,0.00027671,7]
[334430104,1723089050354,-500.0,0.00027671,7]
[334430105,1723089050364,-599.42,0.00027671,7]
[334430106,1723089050374,-500.0,0.00027671,7]
[334430107,1723089050384,-500.0,0.00027671,7]
[334430108,1723089050393,-500.0,0.00027671,7]
[334430109,1723089050403,-500.0,0.00027671,7]
[334430110,1723089050412,-504.08853534,0.00027671,7]
[334430111,1723089050422,-631.4,0.00027671,7]
[334430112,1723089050431,-1114.65,0.00027671,7]
[334430113,1723089050441,-500.0,0.00027671,7]
[334430114,1723089050451,-500.0,0.00027671,7]
[334430115,1723089050461,-500.0,0.00027671,7]
[334430116,1723089050471,-1285.5,0.00027671,7]
[334430117,1723089050481,-500.0,0.00027671,7]
[334430118,1723089050490,-500.0,0.00027671,7]
[334430119,1723089050502,-588.47,0.00027671,7]
[334430120,1723089050512,-504.27297179,0.00027671,7]
[334430121,1723089050522,-500.0,0.00027671,7]
[334430122,1723089050533,-1256.53,0.00027671,7]
[334430123,1723089050543,-504.5145759,0.00027671,7]
[334430124,1723089050553,-500.0,0.00027671,7]
[334430125,1723089050562,-500.0,0.00027671,7]
[334430126,1723089050572,-500.0,0.00027671,7]
[334430127,1723089050581,-1027.23,0.00027671,7]
[334430128,1723089050591,-500.0,0.00027671,7]
[334430129,1723089050600,-500.0,0.00027671,7]
[334430130,1723089050610,-877.99,0.00027671,7]
[334430131,1723089050619,-151.0,0.00027671,7]
[334430132,1723089050629,-151.0,0.00027671,7]
[334430133,1723089050638,-3541.65,0.00027671,7]
[334430134,1723089050648,-2846.86,0.00027671,7]
[334430135,1723089050666,-500.0,0.00027671,7]
[334430136,1723089050677,-1825.02,0.00027671,7]
[334430137,1723089050687,-500.0,0.00027671,7]
[334430138,1723089050697,-2107.39,0.00027671,7]
[334430139,1723089050707,-406.01573741,0.00027671,7]
[334430140,1723089050718,-635.76,0.00027671,7]
[334430141,1723089050730,-500.0,0.00027671,7]
[334430142,1723089050740,-500.0,0.00027671,7]
[334430143,1723089050750,-761.93,0.00027671,7]
[334430144,1723089050759,-151.0,0.00027671,7]
[334430145,1723089050769,-151.0,0.00027671,7]
[334430146,1723089050782,-151.0,0.00027671,7]
[334430147,1723089050794,-151.0,0.00027671,7]
[334430148,1723089050803,-500.0,0.00027671,7]
[334430149,1723089050812,-500.0,0.00027671,7]
[334430150,1723089050823,-500.0,0.00027671,7]
[334430151,1723089050832,-732.94,0.00027671,7]
[334430152,1723089050841,-151.0,0.00027671,7]
[334430153,1723089050850,-215.699953,0.00027671,7]
[334430154,1723089050859,-200.0,0.00027671,7]
[334430155,1723089050869,-500.0,0.00027671,7]
[334430156,1723089050878,-1316.77,0.00027671,7]
[334430157,1723089050888,-500.0,0.00027671,7]
[334430158,1723089050897,-500.0,0.00027671,7]